bitfinex/quotes_SOLUSD_20230905
["timestamp","ask_amount","ask_price","bid_price","bid_amount"]
[1693891318794,63.068,19.336,19.321,7.266]
[1693891318992,63.068,19.336,19.322,2.99999011]
[1693891319598,63.068,19.336,19.322,10.26599011]
[1693891320888,63.068,19.336,19.322,2.99999011]
[1693891322402,63.068,19.336,19.322,7.266]
[1693891322600,63.068,19.336,19.323,2.99999011]
[1693891323003,90.09062559,19.336,19.323,2.99999011]
[1693891323204,27.06,19.33,19.323,2.99999011]
[1693891323392,8.071,19.328,19.323,2.99999011]
[1693891323590,55.0,19.327,19.323,2.99999011]
[1693891323790,8.072,19.326,19.323,2.99999011]
[1693891326305,55.0,19.327,19.323,2.99999011]
[1693891326503,8.071,19.327,19.323,2.99999011]
[1693891327203,55.0,19.328,19.323,2.99999011]
[1693891327406,63.071,19.328,19.323,10.26499011]
[1693891328398,55.0,19.328,19.323,10.26499011]
[1693891330499,63.071,19.328,19.323,2.99999011]
[1693891332008,63.071,19.328,19.323,7.265]
[1693891332509,55.0,19.328,19.324,2.99999011]
[1693891332709,55.0,19.328,19.324,10.26499011]
[1693891332892,55.0,19.328,19.324,7.265]
[1693891335815,55.0,19.329,19.324,7.265]
[1693891337317,8.07,19.33,19.324,7.265]
[1693891337514,55.0,19.329,19.325,2.99999011]
[1693891337717,55.0,19.329,19.325,10.26499011]
[1693891338019,55.0,19.329,19.325,7.265]
[1693891342101,91.8666,19.331,19.325,7.265]
[1693891342298,91.8666,19.331,19.326,2.99999011]
[1693891342605,99.9366,19.331,19.326,10.26399011]
[1693891342806,99.9366,19.331,19.326,7.264]
[1693891345618,91.8666,19.331,19.326,7.264]
[1693891350815,99.9366,19.331,19.325,3.38141702]
[1693891356328,99.9366,19.331,19.325,11.45341702]
[1693891356517,99.9366,19.331,19.325,8.072]
[1693891357025,99.9366,19.331,19.324,8.072]
[1693891357226,99.9366,19.331,19.325,3.38141702]
[1693891358327,55.0,19.33,19.323,11.45441702]
[1693891358624,8.071,19.329,19.323,8.073]
[1693891359435,63.07,19.33,19.323,8.073]
[1693891360628,63.07,19.33,19.324,3.38141702]
[1693891360926,63.07,19.33,19.324,8.072]
[1693891380753,63.07,19.33,19.323,8.073]
[1693891380946,63.07,19.33,19.324,3.38141702]
[1693891385956,63.07,19.33,19.324,11.45341702]
[1693891386154,63.07,19.33,19.324,8.072]
[1693891386740,55.0,19.33,19.324,8.072]
[1693891390666,63.07,19.33,19.324,8.072]
[1693891391759,63.07,19.33,19.32,29.46741702]
[1693891391959,63.07,19.33,19.323,8.073]
[1693891392165,63.07,19.33,19.324,3.38141702]
[1693891392759,63.07,19.33,19.324,8.072]
[1693891399968,89.143,19.33,19.323,3.38141702]
[1693891400179,89.143,19.33,19.317,23.38141702]
[1693891400376,116.203,19.33,19.32,8.074]
[1693891400562,90.13,19.33,19.321,3.38141702]
[1693891400761,90.13,19.33,19.323,8.072]
[1693891400974,90.13,19.33,19.324,3.38141702]
[1693891401173,90.13,19.33,19.324,11.45341702]
[1693891401382,90.13,19.33,19.324,8.072]
[1693891401581,90.13,19.33,19.325,3.38141702]
[1693891403164,90.13,19.33,19.325,11.45341702]
[1693891403465,90.13,19.33,19.325,8.072]
[1693891405060,27.06,19.33,19.325,8.072]
[1693891405266,91.8666,19.331,19.326,3.38141702]
[1693891405780,91.8666,19.331,19.327,8.071]
[1693891406280,99.9366,19.331,19.327,8.071]
[1693891406478,55.0,19.33,19.326,8.071]
[1693891408476,55.0,19.33,19.323,26.081]
[1693891408781,90.13,19.33,19.324,3.38141702]
[1693891408977,63.07,19.33,19.321,29.46541702]
[1693891409678,63.07,19.33,19.323,8.073]
[1693891409979,63.07,19.33,19.324,3.38141702]
[1693891418188,63.07,19.33,19.324,8.072]
[1693891418485,63.07,19.33,19.325,3.38141702]
[1693891420890,63.07,19.33,19.324,8.072]
[1693891425194,63.07,19.33,19.322,11.45441702]
[1693891425392,63.07,19.33,19.322,8.073]
[1693891425595,63.07,19.33,19.323,3.38141702]
[1693891426097,63.07,19.33,19.323,8.073]
[1693891428203,63.07,19.33,19.324,3.38141702]
[1693891428584,47.02672583,19.329,19.321,3.38141702]
[1693891428791,47.02672583,19.329,19.3,27.06]
[1693891428792,194.031,19.327,19.314,8.076]
[1693891429090,194.031,19.327,19.31,3.38141702]
[1693891429091,34.156,19.323,19.31,3.38141702]
[1693891429297,8.074,19.32,19.314,3.38141702]
[1693891429506,8.075,19.318,19.314,3.38141702]
[1693891430601,8.075,19.318,19.312,8.077]
[1693891430803,8.075,19.318,19.313,3.38141702]
[1693891431400,8.075,19.318,19.311,3.38141702]
[1693891432198,8.075,19.318,19.313,8.077]
[1693891432405,8.075,19.318,19.314,3.38141702]
[1693891432599,8.075,19.318,19.314,11.45741702]
[1693891437392,8.075,19.319,19.314,11.45741702]
[1693891437593,55.0,19.318,19.314,11.45741702]
[1693891441712,63.075,19.318,19.314,3.38141702]
[1693891442815,63.075,19.318,19.312,8.077]
[1693891443015,63.075,19.318,19.313,3.38141702]
[1693891444113,63.075,19.318,19.313,8.077]
[1693891444114,55.0,19.318,19.313,8.077]
[1693891444318,55.0,19.318,19.314,3.38141702]
[1693891444530,55.0,19.318,19.315,8.076]
[1693891444704,55.0,19.318,19.316,3.38141702]
[1693891445308,63.075,19.319,19.316,3.38141702]
[1693891446519,63.075,19.319,19.314,3.38141702]
[1693891446706,63.075,19.319,19.314,11.45741702]
[1693891448407,63.075,19.319,19.314,3.38141702]
[1693891448602,63.075,19.319,19.314,11.45741702]
[1693891454335,63.075,19.319,19.314,3.38141702]
[1693891455538,63.075,19.319,19.314,11.45741702]
[1693891457338,63.075,19.319,19.314,3.38141702]
[1693891457542,63.075,19.319,19.313,3.38141702]
[1693891458939,63.075,19.319,19.313,11.45841702]
[1693891460637,63.075,19.319,19.313,3.38141702]
[1693891466841,55.0,19.319,19.313,3.38141702]
[1693891467035,55.0,19.319,19.313,8.077]
[1693891467230,63.075,19.319,19.314,3.38141702]
[1693891468036,63.075,19.319,19.313,3.38141702]
[1693891468333,63.075,19.319,19.313,11.45841702]
[1693891468732,63.075,19.319,19.313,3.38141702]
[1693891468940,63.075,19.319,19.312,8.077]
[1693891469243,63.075,19.319,19.313,3.38141702]
[1693891469450,63.075,19.319,19.313,11.45841702]
[1693891473551,63.075,19.319,19.313,3.38141702]
[1693891473946,63.075,19.319,19.31,3.38141702]
[1693891474455,63.075,19.319,19.313,8.077]
[1693891474758,63.075,19.319,19.314,3.38141702]
[1693891489250,8.074,19.32,19.314,11.45841702]
[1693891490455,55.0,19.319,19.314,11.45841702]
[1693891492762,63.075,19.319,19.314,11.45841702]
[1693891492970,63.075,19.319,19.314,3.38141702]
[1693891493366,55.0,19.319,19.314,11.45741702]
[1693891493666,26.081,19.324,19.314,11.45741702]
[1693891493972,55.0,19.323,19.314,11.45741702]
[1693891494162,96.9256,19.325,19.314,11.45741702]
[1693891494470,104.9976,19.325,19.314,11.45741702]
[1693891494976,96.9256,19.325,19.314,114.49141702]
[1693891496469,55.0,19.324,19.314,114.49141702]
[1693891496870,63.072,19.325,19.314,114.49141702]
[1693891500179,63.072,19.325,19.314,11.45741702]
[1693891502467,8.072,19.325,19.314,11.45741702]
[1693891508977,8.072,19.325,19.314,53.08888699]
[1693891532991,55.0,19.324,19.314,3.38141702]
[1693891533185,91.091,19.321,19.312,3.38141702]
[1693891533492,55.0,19.32,19.311,3.38141702]
[1693891533697,34.165,19.318,19.311,3.38141702]
[1693891534192,34.165,19.318,19.311,11.45941702]
[1693891537893,8.075,19.318,19.311,11.45941702]
[1693891542800,81.087,19.32,19.311,11.45941702]
[1693891542801,8.075,19.319,19.311,11.45941702]
[1693891542997,55.0,19.318,19.311,11.45941702]
[1693891543187,63.075,19.318,19.311,11.45941702]
[1693891556706,89.164,19.318,19.311,3.38141702]
[1693891556904,89.164,19.318,19.305,8.08]
[1693891557097,89.164,19.318,19.306,3.38141702]
[1693891557413,89.164,19.318,19.308,8.079]
[1693891557613,89.164,19.318,19.309,3.38141702]
[1693891557914,89.164,19.318,19.309,8.078]
[1693891558502,89.164,19.318,19.309,8.079]
[1693891558714,63.075,19.318,19.309,8.079]
[1693891558909,63.075,19.318,19.31,3.38141702]
[1693891559103,63.075,19.318,19.311,8.078]
[1693891571122,26.085,19.322,19.311,34.177]
[1693891571324,26.085,19.322,19.312,3.38141702]
[1693891571528,8.074,19.32,19.314,8.076]
[1693891571731,8.074,19.32,19.315,3.38141702]
[1693891572135,8.074,19.32,19.315,11.45741702]
[1693891572327,55.0,19.319,19.315,3.38141702]
[1693891572636,63.075,19.319,19.314,3.38141702]
[1693891573136,63.075,19.319,19.314,11.45741702]
[1693891577226,63.075,19.319,19.314,3.38141702]
[1693891577946,63.075,19.319,19.314,11.45741702]
[1693891578327,63.075,19.319,19.314,3.38141702]
[1693891579334,63.075,19.319,19.314,11.45841702]
[1693891580142,63.075,19.319,19.314,3.38141702]
[1693891582044,55.0,19.319,19.314,11.45741702]
[1693891582947,63.075,19.319,19.314,11.45741702]
[1693891584236,55.0,19.319,19.314,3.38141702]
[1693891584447,63.075,19.319,19.314,8.076]
[1693891590949,8.075,19.319,19.314,8.076]
[1693891591151,8.075,19.319,19.315,3.38141702]
[1693891593452,55.0,19.318,19.314,3.38141702]
[1693891594345,63.075,19.318,19.314,3.38141702]
[1693891595649,55.0,19.318,19.314,11.45741702]
[1693891595841,55.0,19.318,19.314,8.076]
[1693891596539,55.0,19.318,19.313,8.077]
[1693891596748,55.0,19.318,19.314,3.38141702]
[1693891600252,55.0,19.318,19.314,8.076]
[1693891601456,55.0,19.318,19.312,3.38141702]
[1693891601763,55.0,19.318,19.314,3.38141702]
[1693891603765,55.0,19.318,19.314,8.077]
[1693891607456,63.075,19.318,19.312,3.38141702]
[1693891608661,63.075,19.318,19.313,8.077]
[1693891609356,63.075,19.318,19.314,3.38141702]
[1693891611068,63.075,19.318,19.313,3.38141702]
[1693891611461,63.075,19.318,19.311,8.078]
[1693891611775,63.075,19.318,19.312,3.38141702]
[1693891611952,63.075,19.318,19.311,3.38141702]
[1693891613170,63.075,19.318,19.31,11.45941702]
[1693891616369,63.075,19.318,19.31,3.38141702]
[1693891618471,63.075,19.318,19.31,11.45941702]
[1693891619368,63.075,19.318,19.31,3.38141702]
[1693891619774,63.075,19.318,19.309,3.38141702]
[1693891620677,93.9573,19.317,19.309,3.38141702]
[1693891620863,8.076,19.315,19.309,3.38141702]
[1693891621068,55.0,19.314,19.309,3.38141702]
[1693891621371,8.077,19.313,19.309,11.46041702]
[1693891621679,55.0,19.312,19.309,8.079]
[1693891622076,55.0,19.312,19.31,3.38141702]
[1693891622574,55.0,19.312,19.309,3.38141702]
[1693891622765,55.0,19.312,19.309,11.46041702]
[1693891623268,55.0,19.312,19.309,3.38141702]
[1693891630468,63.077,19.312,19.309,3.38141702]
[1693891633086,8.077,19.313,19.309,11.46041702]
[1693891633278,8.077,19.314,19.309,11.46041702]
[1693891633478,55.0,19.313,19.309,11.46041702]
[1693891633680,63.077,19.313,19.309,11.46041702]
[1693891638287,63.077,19.313,19.309,3.38141702]
[1693891642380,63.077,19.313,19.308,8.079]
[1693891642581,63.077,19.313,19.309,3.38141702]
[1693891642880,63.077,19.313,19.308,8.079]
[1693891644091,63.077,19.313,19.306,3.38141702]
[1693891644294,63.077,19.313,19.307,8.079]
[1693891644496,63.077,19.313,19.308,3.38141702]
[1693891645189,63.077,19.313,19.308,11.46041702]
[1693891645496,63.077,19.313,19.308,8.079]
[1693891650203,63.077,19.313,19.307,8.079]
[1693891651305,63.077,19.313,19.306,8.08]
[1693891651603,63.077,19.313,19.307,3.38141702]
[1693891652410,63.077,19.313,19.307,11.46041702]
[1693891653605,63.077,19.313,19.307,8.079]
[1693891653816,63.077,19.313,19.308,3.38141702]
[1693891654020,63.077,19.313,19.308,11.46041702]
[1693891654220,63.077,19.313,19.308,8.079]
[1693891655621,8.077,19.313,19.308,8.079]
[1693891655817,8.076,19.315,19.308,8.079]
[1693891656017,8.076,19.315,19.309,3.38141702]
[1693891656213,8.076,19.316,19.31,8.078]
[1693891656414,8.076,19.316,19.311,3.38141702]
[1693891656711,8.076,19.316,19.311,11.45941702]
[1693891657014,8.076,19.316,19.311,8.078]
[1693891657416,55.0,19.315,19.311,8.078]
[1693891657620,63.076,19.315,19.311,8.078]
[1693891658309,63.076,19.315,19.31,8.078]
[1693891658725,63.076,19.315,19.311,3.38141702]
[1693891659031,63.076,19.315,19.311,11.45941702]
[1693891659227,63.076,19.315,19.311,8.078]
[1693891659729,63.076,19.315,19.309,11.45941702]
[1693891660121,63.076,19.315,19.301,3.38141702]
[1693891660318,63.076,19.315,19.306,3.38141702]
[1693891661539,63.076,19.315,19.306,11.46141702]
[1693891662529,63.076,19.315,19.306,3.38141702]
[1693891663331,63.076,19.315,19.306,11.46141702]
[1693891673539,63.076,19.315,19.306,3.38141702]
[1693891675538,63.076,19.315,19.305,11.46141702]
[1693891699370,63.076,19.315,19.305,3.38141702]
[1693891699562,63.076,19.315,19.304,8.081]
[1693891699865,63.076,19.315,19.305,3.38141702]
[1693891702766,63.076,19.315,19.305,11.46141702]
[1693891707261,8.076,19.315,19.305,37.56841702]
[1693891708857,63.077,19.314,19.305,37.56841702]
[1693891710366,8.076,19.315,19.305,37.56841702]
[1693891714777,8.078,19.312,19.305,37.56841702]
[1693891716076,8.078,19.312,19.305,11.46141702]
[1693891716265,55.0,19.311,19.305,11.46141702]
[1693891718276,63.078,19.311,19.305,11.46141702]
[1693891722273,150.9023,19.317,19.305,11.46141702]
[1693891722274,8.078,19.312,19.305,11.46141702]
[1693891723273,8.077,19.313,19.305,11.46141702]
[1693891723485,63.077,19.312,19.305,11.46141702]
[1693891731183,89.174,19.312,19.305,11.46141702]
[1693891731379,89.174,19.312,19.305,3.38141702]
[1693891731579,89.174,19.312,19.305,11.46141702]
[1693891740980,63.077,19.312,19.305,11.46141702]
[1693891749698,55.0,19.312,19.305,11.46141702]
[1693891750695,8.077,19.313,19.305,11.46141702]
[1693891750885,55.0,19.312,19.305,11.46141702]
[1693891757202,8.077,19.313,19.305,11.46141702]
[1693891770017,8.077,19.314,19.305,11.46141702]
[1693891783428,55.0,19.313,19.305,11.46141702]
[1693891783630,8.078,19.311,19.305,11.46141702]
[1693891785012,8.077,19.312,19.305,11.46141702]
[1693891791126,63.077,19.313,19.305,11.46141702]
[1693891805137,55.0,19.313,19.305,11.46141702]
[1693891805337,55.0,19.314,19.305,11.46141702]
[1693891805641,55.0,19.312,19.305,11.46141702]
[1693891805843,63.077,19.314,19.305,11.46141702]
[1693891811258,55.0,19.314,19.305,11.46141702]
[1693891813049,55.0,19.315,19.305,11.46141702]
[1693891814163,8.076,19.315,19.305,11.46141702]
[1693891814349,55.0,19.314,19.305,11.46141702]
[1693891814550,8.077,19.313,19.305,11.46141702]
[1693891815964,55.0,19.312,19.305,11.46141702]
[1693891816467,63.078,19.312,19.305,11.46141702]
[1693891816652,55.0,19.312,19.305,11.46141702]
[1693891817049,55.0,19.313,19.305,11.46141702]
[1693891818464,63.077,19.313,19.305,11.46141702]
[1693891863694,55.0,19.313,19.305,11.46141702]
[1693891864299,63.077,19.313,19.305,11.46141702]
[1693891865494,55.0,19.313,19.305,11.46141702]
[1693891869497,63.077,19.313,19.305,11.46141702]
[1693891870195,8.077,19.313,19.305,11.46141702]
[1693891870384,102.0333,19.317,19.305,11.46141702]
[1693891870790,93.9573,19.317,19.305,11.46141702]
[1693891872395,55.0,19.316,19.305,11.46141702]
[1693891880207,63.076,19.316,19.305,11.46141702]
[1693891886604,63.076,19.316,19.305,3.38141702]
[1693891886811,63.076,19.316,19.303,8.081]
[1693891887111,63.076,19.316,19.304,3.38141702]
[1693891887294,63.076,19.316,19.304,11.46241702]
[1693891892309,34.181,19.309,19.299,3.38141702]
[1693891892511,8.08,19.306,19.3,8.082]
[1693891892715,8.08,19.307,19.3,8.082]
[1693891892911,55.0,19.306,19.301,3.38141702]
[1693891893217,55.0,19.306,19.302,8.081]
[1693891893517,55.0,19.307,19.303,3.38141702]
[1693891894021,55.0,19.307,19.303,11.46241702]
[1693891895814,63.08,19.307,19.303,3.38141702]
[1693891896013,63.08,19.307,19.302,3.38141702]
[1693891896215,166.151,19.307,19.296,3.87795755]
[1693891896515,166.151,19.307,19.292,4.94461036]
[1693891896726,166.151,19.307,19.292,13.03061036]
[1693891896903,166.151,19.307,19.292,4.94461036]
[1693891897515,166.151,19.307,19.292,13.03061036]
[1693891898314,27.06,19.3,19.291,4.94461036]
[1693891898518,8.084,19.297,19.291,4.94461036]
[1693891898719,55.0,19.296,19.293,4.94461036]
[1693891899119,53.174,19.3,19.293,4.94461036]
[1693891899120,8.083,19.298,19.293,13.02961036]
[1693891899419,55.0,19.297,19.293,13.02961036]
[1693891900323,55.0,19.298,19.293,13.02961036]
[1693891901312,63.083,19.298,19.293,13.02961036]
[1693891901523,63.083,19.298,19.293,4.94461036]
[1693891902619,63.083,19.298,19.293,13.02961036]
[1693891903731,63.083,19.298,19.293,4.94461036]
[1693891905726,63.083,19.298,19.292,13.02961036]
[1693891905927,63.083,19.298,19.29,4.94461036]
[1693891906118,63.083,19.298,19.292,8.086]
[1693891906311,63.083,19.298,19.293,4.94461036]
[1693891907823,63.083,19.298,19.293,13.02961036]
[1693891909025,63.083,19.298,19.293,4.94461036]
[1693891909929,63.083,19.298,19.293,13.02961036]
[1693891911727,63.083,19.298,19.292,4.94461036]
[1693891913828,63.083,19.298,19.292,13.03061036]
[1693891921535,94.1148,19.301,19.292,13.03061036]
[1693891921836,94.1148,19.301,19.292,70.04861036]
[1693891922033,102.1968,19.301,19.292,70.04861036]
[1693891922238,102.1968,19.301,19.292,13.03061036]
[1693891927942,55.0,19.3,19.292,4.94461036]
[1693891928233,55.0,19.3,19.29,4.94461036]
[1693891928234,34.2,19.298,19.29,4.94461036]
[1693891928439,55.0,19.297,19.29,4.94461036]
[1693891928634,8.084,19.296,19.29,8.086]
[1693891928957,63.085,19.295,19.29,8.086]
[1693891930739,63.085,19.295,19.289,8.087]
[1693891930939,63.085,19.295,19.29,4.94461036]
[1693891931342,63.085,19.295,19.288,4.94461036]
[1693891931647,63.085,19.295,19.284,4.94461036]
[1693891932041,63.085,19.295,19.287,4.94461036]
[1693891932242,8.085,19.293,19.287,13.03161036]
[1693891932429,55.0,19.292,19.287,8.087]
[1693891932626,63.086,19.292,19.287,8.087]
[1693891933033,63.086,19.292,19.288,4.94461036]
[1693891933239,63.086,19.292,19.281,4.94461036]
[1693891933538,63.086,19.292,19.28,4.94461036]
[1693891934346,63.086,19.292,19.283,8.089]
[1693891934647,63.086,19.292,19.284,4.94461036]
[1693891934945,63.086,19.292,19.284,13.03361036]
[1693891936346,63.086,19.292,19.284,4.94461036]
[1693891937144,63.086,19.292,19.284,13.03361036]
[1693891937851,27.06,19.29,19.284,4.94461036]
[1693891938147,89.216,19.289,19.28,13.03461036]
[1693891941327,20.0,19.288,19.28,4.94461036]
[1693891941546,55.0,19.287,19.28,4.94461036]
[1693891941846,8.089,19.285,19.279,3.11502304]
[1693891942027,63.089,19.284,19.278,8.091]
[1693891942230,8.089,19.284,19.279,3.17759133]
[1693891942444,63.09,19.283,19.278,3.17759133]
[1693891944650,63.09,19.283,19.277,4.20475195]
[1693891947853,63.09,19.283,19.277,8.092]
[1693891948354,63.09,19.283,19.276,8.092]
[1693891948554,63.09,19.283,19.277,4.94461036]
[1693891951548,63.09,19.283,19.276,4.94461036]
[1693891954258,63.09,19.283,19.276,13.03661036]
[1693891955150,63.09,19.283,19.276,4.94461036]
[1693891960260,63.09,19.283,19.276,13.03661036]
[1693891964774,63.09,19.283,19.276,4.94461036]
[1693891966154,63.09,19.283,19.276,13.03661036]
[1693891968066,63.09,19.283,19.276,4.94461036]
[1693891968365,8.09,19.283,19.276,4.94461036]
[1693891968567,8.09,19.283,19.275,8.093]
[1693891968759,8.09,19.283,19.276,4.94461036]
[1693891969362,8.09,19.283,19.276,8.092]
[1693891969568,55.0,19.282,19.277,4.94461036]
[1693891969772,63.09,19.282,19.277,4.94461036]
[1693891975561,89.228,19.282,19.274,8.093]
[1693891975756,89.228,19.282,19.275,4.94461036]
[1693891975956,89.228,19.282,19.275,13.03761036]
[1693891976369,63.09,19.282,19.275,13.03761036]
[1693891980274,55.0,19.282,19.275,13.03761036]
[1693891980767,63.09,19.282,19.275,13.03761036]
[1693891980965,55.0,19.282,19.275,13.03761036]
[1693891981671,63.09,19.282,19.275,13.03761036]
[1693891982476,55.0,19.282,19.275,13.03761036]
[1693891982864,63.09,19.282,19.275,13.03761036]
[1693891983372,55.0,19.282,19.275,13.03761036]
[1693891983579,8.089,19.284,19.275,13.03761036]
[1693891989889,55.0,19.283,19.275,13.03761036]
[1693891990073,63.09,19.283,19.275,13.03761036]
[1693892001381,27.06,19.28,19.275,13.03761036]
[1693892001583,55.0,19.279,19.275,13.03761036]
[1693892001884,63.091,19.279,19.275,4.94461036]
[1693892002282,63.091,19.279,19.269,4.94461036]
[1693892002483,63.091,19.279,19.272,8.094]
[1693892002679,63.091,19.279,19.273,4.94461036]
[1693892002988,63.091,19.279,19.273,13.03861036]
[1693892006185,55.0,19.279,19.273,13.03861036]
[1693892008883,55.0,19.28,19.273,13.03861036]
[1693892009992,82.06,19.28,19.273,13.03861036]
[1693892010189,90.151,19.28,19.273,13.03861036]
[1693892011587,82.06,19.28,19.273,13.03861036]
[1693892013684,90.151,19.28,19.273,13.03861036]
[1693892021703,82.06,19.28,19.273,13.03861036]
[1693892023404,55.0,19.28,19.273,13.03861036]
[1693892023801,8.09,19.283,19.273,13.03861036]
[1693892023998,55.0,19.282,19.273,13.03861036]
[1693892025005,63.09,19.282,19.273,13.03861036]
[1693892027204,55.0,19.282,19.273,13.03861036]
[1693892028204,123.3424,19.285,19.273,13.03861036]
[1693892028404,8.09,19.282,19.273,13.03861036]
[1693892031409,27.06,19.28,19.273,13.03861036]
[1693892031608,8.092,19.278,19.273,13.03861036]
[1693892035715,8.091,19.279,19.273,13.03861036]
[1693892036019,55.0,19.278,19.273,13.03861036]
[1693892036319,63.092,19.278,19.273,13.03861036]
[1693892048222,63.092,19.278,19.273,4.94461036]
[1693892048616,63.092,19.278,19.272,8.03861036]
[1693892059050,55.0,19.278,19.272,8.03861036]
[1693892059427,67.63807468,19.284,19.272,8.03861036]
[1693892059629,10.77087466,19.283,19.272,8.03861036]
[1693892059936,8.09,19.283,19.272,8.03861036]
[1693892060638,3.37400311,19.284,19.272,8.03861036]
[1693892061041,11.46300311,19.284,19.272,8.03861036]
[1693892061936,8.09,19.281,19.272,8.03861036]
[1693892062137,55.0,19.28,19.272,8.03861036]
[1693892063142,55.0,19.281,19.272,8.03861036]
[1693892065728,63.09,19.281,19.272,8.03861036]
[1693892070544,27.06,19.28,19.272,8.03861036]
[1693892070741,8.092,19.278,19.272,8.03861036]
[1693892071044,55.0,19.277,19.272,8.03861036]
[1693892072847,63.092,19.277,19.272,8.03861036]
[1693892074040,55.0,19.277,19.272,8.03861036]
[1693892074548,55.0,19.278,19.272,8.03861036]
[1693892074942,55.0,19.279,19.272,8.03861036]
[1693892075247,63.091,19.279,19.272,8.03861036]
[1693892083950,55.0,19.279,19.272,8.03861036]
[1693892084649,8.091,19.279,19.272,8.03861036]
[1693892094447,8.091,19.28,19.272,8.03861036]
[1693892098155,8.09,19.281,19.272,8.03861036]
[1693892098358,8.089,19.284,19.272,8.03861036]
[1693892098562,55.0,19.283,19.272,8.03861036]
[1693892098764,63.09,19.283,19.272,8.03861036]
[1693892120376,2.75197738,19.282,19.272,8.03861036]
[1693892120560,8.091,19.28,19.272,8.03861036]
[1693892120968,55.0,19.279,19.272,8.03861036]
[1693892121474,63.091,19.279,19.272,8.03861036]
[1693892149312,3.36459422,19.278,19.266,15.86981327]
[1693892149510,91.31,19.275,19.266,15.86981327]
[1693892149818,8.094,19.272,19.266,15.86981327]
[1693892150317,8.094,19.272,19.266,23.96581327]
[1693892150517,55.0,19.271,19.266,23.96581327]
[1693892151021,55.0,19.272,19.266,23.96581327]
[1693892153618,63.094,19.272,19.266,23.96581327]
[1693892155717,63.094,19.272,19.266,15.86981327]
[1693892156721,63.094,19.272,19.265,8.097]
[1693892157306,63.094,19.272,19.262,26.164]
[1693892157507,63.094,19.272,19.265,8.097]
[1693892172434,55.0,19.272,19.265,8.097]
[1693892175347,63.094,19.272,19.265,8.097]
[1693892180442,55.0,19.272,19.265,8.097]
[1693892181533,63.094,19.272,19.265,8.097]
[1693892184849,63.094,19.272,19.26,42.31376231]
[1693892184850,55.0,19.272,19.26,42.31376231]
[1693892185033,55.0,19.272,19.265,8.097]
[1693892185034,63.094,19.272,19.265,8.097]
[1693892196250,95.0004,19.275,19.265,34.258]
[1693892196451,95.0004,19.275,19.265,137.554]
[1693892196652,95.0004,19.275,19.265,34.258]
[1693892196854,103.0934,19.275,19.265,34.258]
[1693892197760,95.0004,19.275,19.265,34.258]
[1693892198449,103.0934,19.275,19.265,34.258]
[1693892202745,95.0004,19.275,19.265,34.258]
[1693892203958,103.0934,19.275,19.265,34.258]
[1693892204656,55.0,19.274,19.265,34.258]
[1693892209255,63.093,19.274,19.265,34.258]
[1693892215971,63.093,19.274,19.265,50.19569469]
[1693892218267,103.0934,19.275,19.265,50.19569469]
[1693892227969,55.0,19.274,19.265,50.19569469]
[1693892228267,8.094,19.273,19.265,50.19569469]
[1693892229883,63.093,19.274,19.265,50.19569469]